bitfinex-derivatives/quotes_BTCF0:USTF0_20241217
["timestamp","ask_amount","ask_price","bid_price","bid_amount"]
[1734411088585,0.36209195,106440.0,106430.0,0.23858602]
[1734411089100,0.36209195,106440.0,106430.0,0.27148602]
[1734411090894,0.36209195,106440.0,106430.0,0.11643874]
[1734411091091,0.36209195,106440.0,106430.0,0.16341474]
[1734411091600,0.00129195,106440.0,106430.0,0.52421474]
[1734411092001,0.00129195,106440.0,106430.0,0.52432072]
[1734411093396,0.00129195,106440.0,106430.0,0.57214556]
[1734411097504,0.0005,106450.0,106440.0,0.046972]
[1734411097705,0.06250058,106460.0,106450.0,0.046968]
[1734411098002,0.06250058,106460.0,106450.0,0.15812694]
[1734411100210,0.06300058,106460.0,106450.0,0.15812694]
[1734411101111,0.06250058,106460.0,106450.0,0.15812694]
[1734411102203,0.06300058,106460.0,106450.0,0.15812694]
[1734411103006,0.06300058,106460.0,106450.0,0.51892694]
[1734411103206,0.06250058,106460.0,106450.0,0.56558709]
[1734411104199,0.06300058,106460.0,106450.0,0.56558709]
[1734411104399,0.0276286,106460.0,106450.0,0.56558709]
[1734411105093,0.0271286,106460.0,106450.0,0.56558709]
[1734411106110,0.0276286,106460.0,106450.0,0.56558709]
[1734411107306,0.3879286,106460.0,106450.0,0.14920762]
[1734411107808,0.4208286,106460.0,106450.0,0.14920762]
[1734411108003,0.0600286,106460.0,106450.0,0.14920762]
[1734411108204,0.0605286,106460.0,106450.0,0.14920762]
[1734411108910,0.4213286,106460.0,106450.0,0.16773297]
[1734411110511,0.4213286,106460.0,106450.0,0.22331244]
[1734411111601,0.41045972,106460.0,106450.0,0.22331244]
[1734411111806,0.04965972,106460.0,106450.0,0.22331244]
[1734411113207,0.41045972,106460.0,106450.0,0.22331244]
[1734411113912,0.04965972,106460.0,106450.0,0.22331244]
[1734411116207,0.40995972,106460.0,106450.0,0.22331244]
[1734411116706,0.40995972,106460.0,106450.0,0.16773297]
[1734411117209,0.04915972,106460.0,106450.0,0.16773297]
[1734411117422,0.40995972,106460.0,106450.0,0.16773297]
[1734411118408,0.04915972,106460.0,106450.0,0.16773297]
[1734411118608,0.40995972,106460.0,106450.0,0.16773297]
[1734411118808,0.04915972,106460.0,106450.0,0.16773297]
[1734411124119,0.04915972,106460.0,106450.0,0.22331244]
[1734411125313,0.3613,106470.0,106460.0,0.046963]
[1734411125621,0.3613,106470.0,106460.0,0.21370141]
[1734411125810,0.0005,106470.0,106460.0,0.24420141]
[1734411126009,0.0005,106470.0,106460.0,0.60500141]
[1734411126211,0.0611,106480.0,106470.0,0.046959]
[1734411126414,0.0611,106480.0,106470.0,0.15811794]
[1734411128027,0.44458288,106490.0,106480.0,0.046954]
[1734411128322,0.50918288,106490.0,106480.0,0.15811294]
[1734411128820,0.50918288,106490.0,106480.0,0.10253347]
[1734411130121,0.42548496,106490.0,106480.0,0.10253347]
[1734411132815,0.42548496,106490.0,106480.0,0.15811294]
[1734411136222,0.42548496,106490.0,106480.0,0.077254]
[1734411136418,0.42548496,106490.0,106480.0,0.18841294]
[1734411139128,0.42598496,106490.0,106480.0,0.18841294]
[1734411141428,0.42598496,106490.0,106480.0,0.20731112]
[1734411142116,0.42598496,106490.0,106480.0,0.06585218]
[1734411142321,0.42598496,106490.0,106480.0,0.12143165]
[1734411144430,0.42598496,106490.0,106480.0,0.17701112]
[1734411149228,0.42548496,106490.0,106480.0,0.17701112]
[1734411150734,0.42548496,106490.0,106480.0,0.12143165]
[1734411151231,0.42548496,106490.0,106480.0,0.17701112]
[1734411155741,0.42548496,106490.0,106480.0,0.12143165]
[1734411156036,0.50925766,106490.0,106480.0,0.12143165]
[1734411156244,0.50925766,106490.0,106480.0,0.17701112]
[1734411157038,0.50925766,106490.0,106480.0,0.12143165]
[1734411157241,0.50925766,106490.0,106480.0,0.17701112]
[1734411160932,0.50925766,106490.0,106480.0,0.12143165]
[1734411162437,0.62095459,106490.0,106480.0,0.12143165]
[1734411162638,0.50925766,106490.0,106480.0,0.12143165]
[1734411163647,0.50925766,106490.0,106480.0,0.17701112]
[1734411163835,0.50925766,106490.0,106480.0,0.12143165]
[1734411164242,0.50925766,106490.0,106480.0,0.17701112]
[1734411164645,0.50925766,106490.0,106480.0,0.12143165]
[1734411167247,0.62095459,106490.0,106480.0,0.12143165]
[1734411167752,0.50925766,106490.0,106480.0,0.12143165]
[1734411168951,0.62095459,106490.0,106480.0,0.12143165]
[1734411169156,0.50925766,106490.0,106480.0,0.12143165]
[1734411169756,0.14845766,106490.0,106480.0,0.12143165]
[1734411169952,0.50925766,106490.0,106480.0,0.12143165]
[1734411170454,0.14845766,106490.0,106480.0,0.12143165]
[1734411170654,0.50925766,106490.0,106480.0,0.12143165]
[1734411172861,0.50925766,106490.0,106480.0,0.17701112]
[1734411181655,0.14845766,106490.0,106480.0,0.20801112]
[1734411181852,0.06468496,106490.0,106480.0,0.20801112]
[1734411182853,8.496e-05,106490.0,106480.0,0.20801112]
[1734411183660,8.496e-05,106490.0,106480.0,0.23951112]
[1734411184755,8.496e-05,106490.0,106480.0,0.60031112]
[1734411185055,8.496e-05,106490.0,106480.0,0.23951112]
[1734411185457,8.496e-05,106490.0,106480.0,0.09685218]
[1734411185663,0.36088496,106490.0,106480.0,0.15243165]
[1734411185970,0.50885766,106490.0,106480.0,0.15243165]
[1734411186150,0.50885766,106490.0,106480.0,0.12143165]
[1734411186352,0.50885766,106490.0,106470.0,0.03888187]
[1734411186353,0.56443713,106490.0,106470.0,0.03888187]
[1734411186553,0.55573164,106480.0,106450.0,0.05557947]
[1734411186865,0.3608,106460.0,106450.0,0.12110132]
[1734411187553,0.3608,106460.0,106450.0,0.16124157]
[1734411189063,0.41637947,106460.0,106450.0,0.08710525]
[1734411190059,0.41637947,106460.0,106450.0,0.14268472]
[1734411190664,0.3608,106460.0,106450.0,0.14268472]
[1734411193169,0.3608,106460.0,106450.0,0.05557947]
[1734411193770,0.3608,106460.0,106450.0,0.10254647]
[1734411194962,0.41637947,106460.0,106450.0,0.10254647]
[1734411195162,0.3608,106460.0,106450.0,0.10254647]
[1734411195371,0.41637947,106460.0,106450.0,0.10254647]
[1734411195873,0.41637947,106460.0,106450.0,0.046967]
[1734411196262,0.41637947,106460.0,106450.0,0.10254647]
[1734411197673,0.3608,106460.0,106450.0,0.10254647]
[1734411198765,0.41637947,106460.0,106450.0,0.10254647]
[1734411198971,0.41637947,106460.0,106450.0,0.046967]
[1734411199164,0.49594247,106460.0,106450.0,0.046967]
[1734411199468,0.49594247,106460.0,106450.0,0.047467]
[1734411202168,0.49594247,106460.0,106450.0,0.10304647]
[1734411203568,0.49594247,106460.0,106450.0,0.047467]
[1734411203880,0.55152194,106460.0,106450.0,0.0005]
[1734411207271,0.49594247,106460.0,106450.0,0.0005]
[1734411207465,0.440363,106460.0,106450.0,0.10304747]
[1734411207876,0.49594247,106460.0,106450.0,0.10304747]
[1734411208277,0.49594247,106460.0,106450.0,0.047468]
[1734411212283,0.49594247,106460.0,106450.0,0.046968]
[1734411215586,0.57971517,106460.0,106450.0,0.046968]
[1734411217888,0.54711517,106460.0,106450.0,0.046968]
[1734411218085,0.4445727,106460.0,106450.0,0.10254747]
[1734411221286,0.54711517,106460.0,106450.0,0.10254747]
[1734411221784,0.54711517,106460.0,106450.0,0.046968]
[1734411222294,0.54711517,106460.0,106450.0,0.10254747]
[1734411222591,0.4915357,106460.0,106450.0,0.10254747]
[1734411224793,0.4445727,106460.0,106450.0,0.10254747]
[1734411229302,0.4445727,106460.0,106450.0,0.05557947]
[1734411229494,0.4445727,106460.0,106450.0,0.10254747]
[1734411233498,0.4445727,106460.0,106450.0,0.12144583]
[1734411236705,0.4445727,106460.0,106450.0,0.06586636]
[1734411238100,0.50015217,106460.0,106450.0,0.06586636]
[1734411240310,0.4445727,106460.0,106450.0,0.06586636]
[1734411240701,0.4445727,106460.0,106450.0,0.12144583]
[1734411242310,0.3608,106460.0,106450.0,0.12144583]
[1734411242707,0.3608,106460.0,106450.0,0.15224583]
[1734411242907,0.5095727,106470.0,106460.0,0.046963]
[1734411243207,0.5095727,106470.0,106460.0,0.18922194]
[1734411243402,0.4774727,106470.0,106460.0,0.18922194]
[1734411243605,0.4445727,106470.0,106460.0,0.18922194]
[1734411243914,0.4445727,106470.0,106460.0,0.22032194]
[1734411244306,0.4450727,106470.0,106460.0,0.22032194]
[1734411244512,0.0005,106470.0,106460.0,0.22032194]
[1734411245101,0.0005,106470.0,106460.0,0.13364247]
[1734411245319,0.6444491,106480.0,106460.0,0.08667947]
[1734411245607,0.53275217,106480.0,106470.0,0.046959]
[1734411247011,0.53275217,106480.0,106470.0,0.10253847]
[1734411247410,0.4771727,106480.0,106470.0,0.10253847]
[1734411248917,0.53275217,106480.0,106470.0,0.046959]
[1734411250313,0.53325217,106480.0,106470.0,0.046959]
[1734411251518,0.53275217,106480.0,106470.0,0.046959]
[1734411251921,0.53275217,106480.0,106470.0,0.09471185]
[1734411252304,0.4776727,106480.0,106470.0,0.15029132]
[1734411253518,0.4771727,106480.0,106470.0,0.15029132]
[1734411254420,0.0331,106480.0,106470.0,0.56667079]
[1734411254616,0.0005,106480.0,106470.0,0.56667079]
[1734411255221,0.0005,106480.0,106470.0,0.59687079]
[1734411255423,0.39188496,106490.0,106480.0,0.046954]
[1734411255619,0.39188496,106490.0,106480.0,0.15811294]
[1734411257529,0.36088496,106490.0,106480.0,0.19001294]
[1734411258027,0.36088496,106490.0,106480.0,0.22281294]
[1734411259228,0.36088496,106490.0,106480.0,0.22291587]
[1734411259417,0.36138496,106490.0,106480.0,0.22291587]
[1734411260719,0.00058496,106490.0,106480.0,0.58371587]
[1734411263819,0.00058496,106490.0,106480.0,0.93929534]
[1734411264122,0.00058496,106490.0,106480.0,0.88371587]
[1734411265118,0.00058496,106490.0,106480.0,0.93929534]
[1734411265323,0.0316,106510.0,106500.0,0.046946]
[1734411265523,0.0316,106510.0,106500.0,0.15810494]
[1734411266531,0.0316,106510.0,106500.0,0.18950494]
[1734411266933,0.42459654,106520.0,106510.0,0.046941]
[1734411266934,0.39389654,106520.0,106510.0,0.046941]
[1734411267131,0.39389654,106520.0,106510.0,0.10252047]
[1734411267329,0.03309654,106520.0,106510.0,0.10252047]
[1734411268629,0.03309654,106520.0,106510.0,0.46332047]
[1734411269545,0.39389654,106520.0,106510.0,0.10252047]
[1734411269930,0.44947601,106520.0,106510.0,0.046941]
[1734411270128,0.50505548,106520.0,106510.0,0.046941]
[1734411270329,0.48177601,106520.0,106510.0,0.046941]
[1734411270537,0.53735548,106520.0,106510.0,0.046941]
[1734411270734,0.48177601,106520.0,106510.0,0.046941]
[1734411275425,0.06589654,106520.0,106510.0,0.10252047]
[1734411276240,0.42669654,106520.0,106510.0,0.10252047]
[1734411279541,0.39439654,106520.0,106510.0,0.10252047]
[1734411281241,0.03359654,106520.0,106510.0,0.10252047]
[1734411287650,0.11736924,106520.0,106510.0,0.10252047]
[1734411288648,0.47816924,106520.0,106510.0,0.10252047]
[1734411289845,0.53374871,106520.0,106510.0,0.046941]
[1734411290341,0.58936617,106520.0,106510.0,0.10252047]
[1734411290540,0.50559347,106520.0,106510.0,0.10252047]
[1734411293050,0.60810994,106520.0,106510.0,0.046941]
[1734411293249,0.58433047,106520.0,106510.0,0.046941]
[1734411293553,0.63990994,106520.0,106510.0,0.046941]
[1734411293852,0.58433047,106520.0,106510.0,0.046941]
[1734411295448,0.66834684,106520.0,106510.0,0.046941]
[1734411295852,0.58433047,106520.0,106510.0,0.046941]
[1734411296360,0.58433047,106520.0,106500.0,0.06712018]
[1734411296361,0.69548941,106520.0,106500.0,0.06712018]
[1734411296660,0.57963051,106510.0,106500.0,0.11406418]
[1734411296852,0.52405104,106510.0,106500.0,0.11406418]
[1734411297248,0.52405104,106510.0,106500.0,0.09541999]
[1734411297458,0.52405104,106510.0,106500.0,0.09491999]
[1734411298053,0.57963051,106510.0,106500.0,0.046944]
[1734411298257,0.69132744,106510.0,106500.0,0.046944]
[1734411298449,0.6073174,106510.0,106500.0,0.047444]
[1734411298646,0.6073174,106510.0,106500.0,0.0005]
[1734411299343,0.6073174,106510.0,106490.0,0.06589163]
[1734411299557,0.56671314,106500.0,106490.0,0.046949]
[1734411299759,0.66923861,106500.0,106490.0,0.046949]
[1734411300258,0.61365914,106500.0,106490.0,0.046949]
[1734411300455,0.04695,106490.0,106480.0,0.04705693]
[1734411300655,0.49372947,106490.0,106480.0,0.04705693]
[1734411300957,0.57766314,106490.0,106480.0,0.04705693]
[1734411301350,0.57766314,106490.0,106480.0,0.00010293]
[1734411302070,0.60674075,106490.0,106480.0,0.00010293]
[1734411303248,0.52280708,106490.0,106480.0,0.00010293]
[1734411304350,0.52280708,106490.0,106480.0,0.00060293]
[1734411304947,0.43815,106490.0,106480.0,0.04755693]
[1734411306653,0.3912,106490.0,106480.0,0.04755693]
[1734411307462,0.3912,106490.0,106480.0,0.13221401]
[1734411307759,0.3912,106490.0,106480.0,0.16451401]
[1734411310066,0.3608,106490.0,106480.0,0.16451401]
[1734411310265,0.3608,106490.0,106480.0,0.19711401]
[1734411311173,0.3608,106510.0,106500.0,0.046946]
[1734411311670,0.49239908,106510.0,106490.0,0.046949]
[1734411311867,0.3608,106500.0,106490.0,0.046949]
[1734411312459,0.04695,106490.0,106480.0,0.00060293]
[1734411312763,0.49240708,106490.0,106480.0,0.00060293]
[1734411313666,0.3608,106490.0,106480.0,0.04755693]
[1734411314171,0.40775,106490.0,106480.0,0.04755693]
[1734411326371,0.40775,106490.0,106480.0,0.04705693]
[1734411328163,0.49168367,106490.0,106480.0,0.04705693]
[1734411328578,0.40775,106490.0,106480.0,0.04705693]
[1734411329676,0.49168367,106490.0,106480.0,0.04705693]
[1734411329881,0.40775,106490.0,106480.0,0.04705693]
[1734411330072,0.46329717,106490.0,106480.0,0.04705693]
[1734411331478,0.40775,106490.0,106480.0,0.04705693]
[1734411331776,0.46329717,106490.0,106480.0,0.04705693]
[1734411333375,0.54723084,106490.0,106480.0,0.04705693]
[1734411333579,0.46329717,106490.0,106480.0,0.04705693]
[1734411335583,0.54723084,106490.0,106480.0,0.04705693]
[1734411335979,0.46329717,106490.0,106480.0,0.04705693]
[1734411336674,0.3608,106490.0,106480.0,0.04705693]
[1734411336873,0.3608,106490.0,106480.0,0.15815127]
[1734411337383,0.3608,106490.0,106480.0,0.1026041]
[1734411338981,0.59508084,106500.0,106490.0,0.04695]
[1734411339485,0.59558084,106500.0,106490.0,0.04695]
[1734411340385,0.59508084,106500.0,106490.0,0.04695]
[1734411341387,0.59558084,106500.0,106480.0,0.08346062]
[1734411342086,0.59558084,106500.0,106490.0,0.04695]
[1734411342588,0.59508084,106500.0,106490.0,0.04705775]
[1734411343477,0.59558084,106500.0,106490.0,0.04705775]
[1734411344482,0.59508084,106500.0,106490.0,0.04705775]
[1734411345478,0.59558084,106500.0,106490.0,0.04705775]
[1734411346394,0.59508084,106500.0,106490.0,0.04705775]
[1734411347293,0.59508084,106500.0,106490.0,0.10260492]
[1734411347478,0.59558084,106500.0,106490.0,0.10260492]
[1734411347793,0.4561,106500.0,106490.0,0.10260492]
[1734411348190,0.4233,106500.0,106490.0,0.10260492]
[1734411349190,0.4233,106500.0,106490.0,0.14234737]
[1734411349893,0.3613,106500.0,106490.0,0.14234737]
[1734411350493,0.3608,106500.0,106490.0,0.14234737]
[1734411355498,0.4246,106510.0,106490.0,0.14234737]
[1734411355684,0.4246,106510.0,106500.0,0.10249317]
[1734411356397,0.4241,106510.0,106500.0,0.10249317]
[1734411357393,0.4246,106510.0,106500.0,0.10249317]
[1734411358396,0.4241,106510.0,106500.0,0.046946]
[1734411358583,0.47964717,106510.0,106500.0,0.046946]
[1734411359598,0.48014717,106510.0,106500.0,0.046946]
[1734411359799,0.56408084,106510.0,106500.0,0.046946]
[1734411360187,0.61962801,106510.0,106490.0,0.0398502]
[1734411360387,0.44854717,106500.0,106490.0,0.05822078]
[1734411360898,0.49549317,106500.0,106490.0,0.10516778]
[1734411362383,0.57942684,106500.0,106490.0,0.10516778]
[1734411364496,0.44854717,106500.0,106490.0,0.10516778]
[1734411364688,0.08774717,106500.0,106490.0,0.10516778]
[1734411364999,0.44854717,106500.0,106490.0,0.10516778]
[1734411365499,0.53248084,106500.0,106490.0,0.10516778]
[1734411365693,0.44854717,106500.0,106490.0,0.10516778]
[1734411367398,0.53248084,106500.0,106490.0,0.10516778]
[1734411368193,0.47693367,106500.0,106490.0,0.16071495]
[1734411368491,0.393,106500.0,106490.0,0.16071495]
[1734411368692,0.0322,106500.0,106490.0,0.16071495]
[1734411370001,0.393,106500.0,106490.0,0.16071495]
[1734411375711,0.44854717,106500.0,106490.0,0.10516778]
[1734411376310,0.393,106500.0,106490.0,0.16071495]
[1734411376699,0.47693367,106500.0,106490.0,0.16071495]
[1734411378408,0.47693367,106500.0,106490.0,0.0867972]
[1734411378910,0.47693367,106500.0,106490.0,0.14234437]
[1734411379801,0.47693367,106500.0,106490.0,0.16121841]
[1734411386504,0.47693367,106500.0,106490.0,0.14234437]
[1734411387407,0.52388367,106500.0,106490.0,0.14234437]
[1734411388617,0.47693367,106500.0,106490.0,0.14234437]
[1734411389112,0.47693367,106500.0,106490.0,0.16088656]
[1734411389814,0.47693367,106500.0,106490.0,0.10533939]
[1734411390018,0.47693367,106500.0,106490.0,0.16088656]
[1734411396925,0.47693367,106500.0,106490.0,0.10533939]
[1734411397118,0.47693367,106500.0,106490.0,0.16088656]
[1734411398514,0.11613367,106500.0,106490.0,0.16088656]
[1734411398714,0.47693367,106500.0,106490.0,0.16088656]
[1734411399621,0.47693367,106500.0,106480.0,0.11834717]
[1734411399622,0.47693367,106500.0,106480.0,0.11795734]
[1734411400416,0.47693367,106500.0,106490.0,0.046947]
[1734411400617,0.47693367,106500.0,106490.0,0.04704649]
[1734411402619,0.11613367,106500.0,106490.0,0.04704649]
[1734411402818,0.47693367,106500.0,106490.0,0.04704649]
[1734411403424,0.6355806,106500.0,106490.0,0.04704649]
[1734411403619,0.52388367,106500.0,106490.0,0.06586869]
[1734411404226,0.6355806,106500.0,106490.0,0.06586869]
[1734411404531,0.52388367,106500.0,106490.0,0.06586869]
[1734411404933,0.6355806,106500.0,106490.0,0.06586869]
[1734411405435,0.69112777,106500.0,106490.0,0.06586869]
[1734411407332,0.6355806,106500.0,106490.0,0.12141586]
[1734411408429,0.5886306,106500.0,106490.0,0.12141586]
[1734411408732,0.47693367,106500.0,106490.0,0.12141586]
[1734411409431,0.5886306,106500.0,106490.0,0.12141586]
[1734411411029,0.47693367,106500.0,106490.0,0.12141586]
[1734411411232,0.5886306,106500.0,106490.0,0.12141586]
[1734411411538,0.47693367,106500.0,106490.0,0.12141586]
[1734411411727,0.5886306,106500.0,106490.0,0.12141586]
[1734411415731,0.6355806,106500.0,106490.0,0.06586869]
[1734411415936,0.69112777,106500.0,106490.0,0.06586869]
[1734411417946,0.6071941,106500.0,106490.0,0.06586869]
[1734411421447,0.55164693,106500.0,106490.0,0.12141586]
[1734411424554,0.19084693,106500.0,106490.0,0.12141586]
[1734411424852,0.91244693,106500.0,106490.0,0.12141586]
[1734411425463,0.91244693,106500.0,106490.0,0.06586869]
[1734411427143,0.86549693,106500.0,106490.0,0.06586869]
[1734411427853,0.9679941,106500.0,106490.0,9.949e-05]
[1734411429759,0.9679941,106500.0,106490.0,0.04705449]
[1734411430648,0.86549693,106500.0,106490.0,0.10260166]
[1734411432654,0.94976182,106500.0,106490.0,0.10260166]
[1734411433947,0.86549693,106500.0,106490.0,0.10260166]
[1734411434149,0.94978062,106500.0,106490.0,0.10260166]
[1734411439257,1.02354127,106500.0,106490.0,9.949e-05]
[1734411439959,0.9679941,106500.0,106490.0,9.949e-05]
[1734411440351,0.9679941,106500.0,106490.0,0.04705449]
[1734411442445,1.02354127,106500.0,106490.0,0.04705449]
[1734411442760,1.16316243,106500.0,106490.0,0.04705449]
[1734411444349,1.0514655,106500.0,106490.0,0.04705449]
[1734411444550,1.10827987,106500.0,106490.0,0.04705449]
[1734411450765,0.96865871,106500.0,106490.0,0.04705449]
[1734411452259,0.91311154,106500.0,106490.0,0.10260166]
[1734411452759,0.96865871,106500.0,106490.0,0.04705449]
[1734411453163,0.96865871,106500.0,106490.0,0.10260166]
[1734411453354,0.96865871,106500.0,106490.0,0.04705449]
[1734411469874,0.91311154,106500.0,106490.0,0.04705449]
[1734411470576,0.96865871,106500.0,106490.0,0.04705449]
[1734411471469,0.91311154,106500.0,106490.0,0.04705449]
[1734411473070,0.96865871,106500.0,106490.0,0.04705449]
[1734411475965,0.24705871,106500.0,106490.0,0.04705449]
[1734411476176,0.96865871,106500.0,106490.0,0.04705449]
[1734411476766,0.96865871,106500.0,106490.0,0.046955]
[1734411477768,0.96865871,106500.0,106490.0,0.04706908]
[1734411481877,1.10827987,106500.0,106490.0,0.04706908]
[1734411483779,0.99591833,106500.0,106490.0,0.04706908]
[1734411483977,1.1084488,106500.0,106490.0,0.04706908]
[1734411485476,0.99591833,106500.0,106490.0,0.04706908]
[1734411488373,1.03385557,106500.0,106490.0,0.04706908]
[1734411490683,0.99591833,106500.0,106490.0,0.00011408]
[1734411493273,1.0514655,106500.0,106490.0,0.00011408]
[1734411493970,0.99591833,106500.0,106490.0,0.00011408]
[1734411501990,0.27431833,106500.0,106490.0,0.00011408]
[1734411502175,0.99591833,106500.0,106490.0,0.00011408]
[1734411503683,1.0514655,106500.0,106490.0,0.00011408]
[1734411505186,1.10701267,106500.0,106490.0,0.00011408]
[1734411505376,1.13493691,106500.0,106490.0,0.00011408]
[1734411505576,0.046955,106490.0,106480.0,0.0005]
[1734411505782,0.72143285,106490.0,106480.0,0.0005]
[1734411506684,0.046959,106480.0,106470.0,0.00011191]
[1734411506880,0.63118605,106480.0,106470.0,0.00011191]
[1734411507786,0.60432011,106480.0,106470.0,0.00011191]
[1734411508003,0.54753457,106480.0,106470.0,0.04707491]
[1734411508187,0.65986728,106480.0,106470.0,0.04707491]
[1734411508377,0.60432011,106480.0,106470.0,0.10262208]
[1734411508583,0.4919874,106480.0,106470.0,0.14886206]
[1734411509291,0.54753457,106480.0,106470.0,0.14886206]
[1734411512392,0.54753457,106480.0,106470.0,0.09331489]
[1734411513991,0.54753457,106480.0,106470.0,0.04635189]
[1734411514584,0.60308174,106480.0,106470.0,0.04685189]
[1734411514891,0.71541445,106480.0,106470.0,0.04685189]
[1734411524198,0.71541445,106480.0,106470.0,0.00061191]
[1734411525800,0.71541445,106480.0,106460.0,0.05554717]
[1734411526000,0.53177557,106470.0,106460.0,0.05554717]
[1734411526794,0.53177557,106470.0,106460.0,0.05566202]
[1734411526995,0.57873857,106470.0,106460.0,0.10262902]
[1734411527499,0.61183857,106470.0,106460.0,0.10262902]
[1734411527999,0.61183857,106470.0,106460.0,0.12114049]
[1734411528903,0.61183857,106470.0,106460.0,0.06609332]
[1734411530292,0.3608,106470.0,106460.0,0.17718766]
[1734411530512,0.3608,106470.0,106460.0,0.20828766]
[1734411530703,0.54753557,106480.0,106460.0,0.23928766]
[1734411530994,0.54753557,106480.0,106470.0,0.10251017]
[1734411532009,0.54753557,106480.0,106470.0,0.046963]
[1734411532302,0.71541545,106480.0,106470.0,0.046963]
[1734411532690,0.63118705,106480.0,106470.0,0.046963]
[1734411533398,0.71541001,106480.0,106470.0,0.046963]
[1734411533592,0.57563988,106480.0,106470.0,0.046963]
[1734411537412,0.63118705,106480.0,106470.0,0.046963]
[1734411539000,0.57563988,106480.0,106470.0,0.046963]
[1734411540309,0.57563988,106480.0,106470.0,0.09496554]
[1734411540906,0.21483988,106480.0,106470.0,0.09496554]
[1734411541109,0.57563988,106480.0,106470.0,0.09496554]
[1734411542300,0.21483988,106480.0,106470.0,0.09496554]
[1734411542502,0.57563988,106480.0,106470.0,0.09496554]
[1734411544512,0.63120355,106480.0,106470.0,0.09496554]
[1734411545103,0.57565638,106480.0,106470.0,0.09496554]
[1734411545499,0.65992236,106480.0,106470.0,0.09496554]
[1734411548823,0.55741519,106480.0,106470.0,0.15051271]
[1734411549410,0.44506598,106480.0,106470.0,0.15051271]
[1734411550007,0.3608,106480.0,106470.0,0.15051271]
[1734411554520,0.50061315,106480.0,106470.0,0.09496554]
[1734411555422,0.50061315,106480.0,106460.0,0.05554717]
[1734411555624,0.3608,106470.0,106460.0,0.10251517]
[1734411555813,0.3608,106470.0,106460.0,0.12224904]
[1734411556510,0.3608,106470.0,106460.0,0.1223654]
[1734411556715,0.3608,106470.0,106460.0,0.1218654]
[1734411557316,0.50061315,106480.0,106470.0,0.046963]
[1734411557519,0.44506598,106480.0,106470.0,0.046963]
[1734411558025,0.44506598,106480.0,106470.0,0.10251017]
[1734411558622,0.44506598,106480.0,106470.0,0.046963]
[1734411558825,0.44506598,106480.0,106470.0,0.10251017]
[1734411562826,0.44506598,106480.0,106470.0,0.046963]
[1734411563516,0.50061315,106480.0,106470.0,0.046963]
[1734411565630,0.44506598,106480.0,106470.0,0.046963]
[1734411566727,0.44506598,106480.0,106470.0,0.09358012]
[1734411567223,0.44506598,106480.0,106470.0,0.14912729]
[1734411568628,0.44506598,106480.0,106470.0,0.09358012]
[1734411574022,0.3608,106480.0,106470.0,0.09358012]
[1734411575132,0.44506598,106480.0,106470.0,0.09358012]
[1734411578937,0.44506598,106480.0,106470.0,0.14912729]
[1734411581130,0.44506598,106480.0,106470.0,0.09358012]
[1734411581528,0.44506598,106480.0,106470.0,0.14912729]
[1734411585137,0.50061315,106480.0,106470.0,0.09358012]
[1734411585326,0.61296236,106480.0,106470.0,0.09358012]
[1734411585529,0.52869638,106480.0,106470.0,0.09358012]
[1734411587630,0.61295718,106480.0,106470.0,0.09358012]
[1734411590330,0.52869638,106480.0,106470.0,0.09358012]
[1734411592237,0.63120255,106480.0,106470.0,0.09358012]
[1734411592842,0.77168606,106480.0,106470.0,0.09358012]
[1734411593848,0.63120255,106480.0,106470.0,0.09358012]
[1734411594236,0.77168606,106480.0,106470.0,0.09358012]
[1734411594440,0.63120255,106480.0,106470.0,0.09358012]
[1734411596140,0.63120255,106480.0,106470.0,0.046963]
[1734411596838,0.77168606,106480.0,106470.0,0.046963]
[1734411597145,0.63120255,106480.0,106470.0,0.046963]
[1734411602454,0.71532294,106480.0,106470.0,0.046963]
[1734411605845,1.02057577,106480.0,106470.0,0.046963]
[1734411606047,0.90822656,106480.0,106470.0,0.046963]
[1734411606447,1.02057577,106480.0,106470.0,0.046963]
[1734411607056,0.90822656,106480.0,106470.0,0.046963]
[1734411607351,0.9650286,106480.0,106470.0,0.046963]
[1734411607555,1.02057577,106480.0,106470.0,0.046963]
[1734411607949,1.07612294,106480.0,106470.0,0.046963]
[1734411610548,1.07612294,106480.0,106450.0,0.08784717]
[1734411610743,0.41634717,106470.0,106460.0,0.047464]
[1734411611151,0.44794717,106470.0,106460.0,0.047464]
[1734411611549,0.44794717,106470.0,106460.0,0.04757939]
[1734411611749,0.44794717,106470.0,106460.0,0.04707939]
[1734411612858,0.44794717,106470.0,106460.0,0.06591509]
[1734411613851,0.44794717,106470.0,106460.0,0.06541509]
[1734411614057,0.3924,106470.0,106460.0,0.06541509]
[1734411614259,0.3608,106470.0,106460.0,0.12096226]
[1734411614651,0.3608,106470.0,106460.0,0.15116226]
[1734411614859,0.3608,106470.0,106460.0,0.15166226]
[1734411615851,0.3608,106470.0,106460.0,0.15116226]
[1734411616858,0.3608,106470.0,106460.0,0.15166226]
[1734411617166,0.44492039,106470.0,106460.0,0.15166226]
[1734411617362,0.3608,106470.0,106460.0,0.15166226]
[1734411617764,0.3608,106470.0,106460.0,0.15116226]
[1734411618066,0.44492039,106470.0,106460.0,0.15116226]
[1734411618451,0.45243039,106470.0,106460.0,0.09561509]
[1734411618966,0.45243039,106470.0,106460.0,0.09611509]
[1734411619961,0.55104039,106470.0,106460.0,0.09611509]
[1734411620357,0.61678039,106470.0,106460.0,0.09611509]
[1734411623064,0.67232756,106470.0,106460.0,0.09611509]
[1734411623658,0.67232756,106470.0,106460.0,0.06591509]
[1734411625869,0.67232756,106470.0,106460.0,0.06541509]
[1734411626166,0.61678039,106470.0,106460.0,0.06541509]
[1734411628268,0.64788039,106470.0,106460.0,0.06541509]
[1734411629363,0.64788039,106470.0,106460.0,0.12096226]
[1734411629765,0.68038039,106470.0,106460.0,0.12096226]
[1734411631769,0.71158039,106470.0,106460.0,0.12096226]
[1734411637378,0.71158039,106470.0,106460.0,0.10262656]
[1734411641874,0.71158039,106470.0,106460.0,0.12143679]
[1734411642269,0.71158039,106470.0,106460.0,0.06588962]
[1734411643091,0.71158039,106470.0,106460.0,0.12143679]
[1734411644481,0.35078039,106470.0,106460.0,0.12143679]
[1734411645576,0.71158039,106470.0,106460.0,0.12143679]
[1734411649480,0.71158039,106470.0,106460.0,0.06588962]
[1734411652681,0.71158039,106470.0,106460.0,0.12143679]
[1734411653276,0.71158039,106470.0,106460.0,0.06588962]
[1734411655382,0.71158039,106470.0,106460.0,0.12143679]
[1734411657279,0.71815039,106470.0,106460.0,0.12143679]
[1734411657477,0.71815039,106470.0,106460.0,0.06588962]
[1734411662383,0.71815039,106470.0,106460.0,0.12143679]
[1734411663188,0.71815039,106470.0,106460.0,0.06588962]
[1734411668277,0.71815039,106470.0,106460.0,0.12143679]
[1734411671989,0.63403,106470.0,106460.0,0.17698396]
[1734411673894,0.71835259,106470.0,106460.0,0.17698396]
[1734411675295,0.35755259,106470.0,106460.0,0.17698396]
[1734411676392,0.27323,106470.0,106460.0,0.17698396]